fUSD/lending_fUSD_20240803
["ID","MTS","AMOUNT","RATE_DAILY","PERIOD"]
[333992745,1722666768054,-500.0,0.00018904,2]
[333992746,1722666768065,-702.76,0.00018904,2]
[333992747,1722666768075,-500.0,0.00018904,2]
[333992748,1722666768084,-500.0,0.00018904,2]
[333992749,1722666768094,-500.0,0.00018904,2]
[333992750,1722666768104,-1612.19,0.00018904,2]
[333992751,1722666768115,-500.0,0.00018904,2]
[333992752,1722666768124,-1146.11,0.00018904,2]
[333992753,1722666768134,-500.0,0.00018904,2]
[333992754,1722666768143,-764.88,0.00018904,2]
[333992755,1722666768153,-500.0,0.00018904,2]
[333992756,1722666768163,-1869.99,0.00018904,2]
[333992757,1722666768173,-500.0,0.00018904,2]
[333992758,1722666768183,-1937.58,0.00018904,2]
[333992759,1722666768193,-1092.19,0.00018904,2]
[333992760,1722666768203,-500.0,0.00018904,2]
[333992761,1722666768213,-1144.97,0.00018904,2]
[333992762,1722666768222,-1286.39,0.00018904,2]
[333992763,1722666768233,-500.0,0.00018904,2]
[333992764,1722666768243,-1257.28,0.00018904,2]
[333992765,1722666768261,-575.74,0.00018904,2]
[333992766,1722666768271,-500.0,0.00018904,2]
[333992767,1722666768280,-500.0,0.00018904,2]
[333992768,1722666768290,-790.36,0.00018904,2]
[333992769,1722666768299,-1056.65,0.00018904,2]
[333992770,1722666768309,-682.23,0.00018904,2]
[333992771,1722666768319,-500.0,0.00018904,2]
[333992772,1722666768329,-831.9,0.00018904,2]
[333992773,1722666768339,-1274.51,0.00018904,2]
[333992774,1722666768349,-971.42,0.00018904,2]
[333992775,1722666768363,-1312.76,0.00018904,2]
[333992776,1722666768372,-500.0,0.00018904,2]
[333992777,1722666768382,-500.0,0.00018904,2]
[333992778,1722666768392,-500.0,0.00018904,2]
[333992779,1722666768403,-500.0,0.00018904,2]
[333992780,1722666768412,-500.0,0.00018904,2]
[333992781,1722666768423,-500.0,0.00018904,2]
[333992782,1722666768433,-1074.3,0.00018904,2]
[333992783,1722666768443,-500.0,0.00018904,2]
[333992784,1722666768454,-634.32,0.00018904,2]
[333992785,1722666768464,-500.0,0.00018904,2]
[333992786,1722666768474,-564.14,0.00018904,2]
[333992787,1722666768484,-786.52,0.00018904,2]
[333992788,1722666768493,-500.0,0.00018904,2]
[333992789,1722666768503,-506.16226403,0.00018904,2]
[333992790,1722666768512,-500.0,0.00018904,2]
[333992791,1722666768522,-500.0,0.00018904,2]
[333992792,1722666768532,-1029.12,0.00018904,2]
[333992793,1722666768542,-837.07,0.00018904,2]
[333992794,1722666768551,-500.0,0.00018904,2]
[333992795,1722666768561,-1796.88,0.00018904,2]
[333992796,1722666768570,-1732.55,0.00018904,2]
[333992797,1722666768580,-500.0,0.00018904,2]
[333992798,1722666768590,-500.0,0.00018904,2]
[333992799,1722666768600,-1573.42,0.00018904,2]
[333992800,1722666768610,-500.0,0.00018904,2]
[333992801,1722666768620,-854.91,0.00018904,2]
[333992802,1722666768630,-1076.12,0.00018904,2]
[333992803,1722666768640,-500.0,0.00018904,2]
[333992804,1722666768650,-500.0,0.00018904,2]
[333992805,1722666768661,-737.63,0.00018904,2]
[333992806,1722666768673,-1711.13,0.00018904,2]
[333992807,1722666768682,-500.0,0.00018904,2]
[333992808,1722666768691,-500.0,0.00018904,2]
[333992809,1722666768701,-500.0,0.00018904,2]
[333992810,1722666768711,-599.32,0.00018904,2]
[333992811,1722666768721,-500.0,0.00018904,2]
[333992812,1722666768731,-1490.49,0.00018904,2]
[333992813,1722666768743,-686.99,0.00018904,2]
[333992814,1722666768754,-941.41,0.00018904,2]
[333992815,1722666768764,-500.0,0.00018904,2]
[333992816,1722666768774,-683.87,0.00018904,2]
[333992817,1722666768784,-925.99,0.00018904,2]
[333992818,1722666768793,-500.0,0.00018904,2]
[333992819,1722666768804,-518.33,0.00018904,2]
[333992820,1722666768813,-1190.09,0.00018904,2]
[333992821,1722666768823,-500.0,0.00018904,2]
[333992822,1722666768833,-500.0,0.00018904,2]
[333992823,1722666768843,-500.0,0.00018904,2]
[333992824,1722666768853,-775.59,0.00018904,2]
[333992825,1722666768863,-500.0,0.00018904,2]
[333992826,1722666768873,-850.78,0.00018904,2]
[333992827,1722666768883,-500.0,0.00018904,2]
[333992828,1722666768892,-1150.61,0.00018904,2]
[333992829,1722666768902,-461.5946794,0.00018904,2]
[333992830,1722666768911,-1249.02,0.00018904,2]
[333992831,1722666768922,-1183.94,0.00018904,2]
[333992832,1722666768931,-500.0,0.00018904,2]
[333992833,1722666768940,-500.0,0.00018904,2]
[333992834,1722666768950,-714.61,0.00018904,2]
[333992835,1722666768960,-500.0,0.00018904,2]
[333992836,1722666768970,-619.81,0.00018904,2]
[333992837,1722666768980,-1412.03,0.00018904,2]
[333992838,1722666768990,-557.22,0.00018904,2]
[333992839,1722666768999,-500.0,0.00018904,2]
[333992840,1722666769009,-500.0,0.00018904,2]
[333992841,1722666769019,-901.04,0.00018904,2]
[333992842,1722666769029,-1245.11,0.00018904,2]
[333992843,1722666769038,-1551.65,0.00018904,2]
[333992844,1722666769048,-829.01,0.00018904,2]
[333992845,1722666769058,-563.09,0.00018904,2]
[333992846,1722666769068,-523.94,0.00018904,2]
[333992847,1722666769078,-1086.27,0.00018904,2]
[333992848,1722666769088,-554.91,0.00018904,2]
[333992849,1722666769097,-500.0,0.00018904,2]
[333992850,1722666769106,-500.0,0.00018904,2]
[333992851,1722666769115,-500.0,0.00018904,2]
[333992852,1722666769126,-1346.52,0.00018904,2]
[333992853,1722666769135,-1087.56,0.00018904,2]
[333992854,1722666769145,-1404.5,0.00018904,2]
[333992855,1722666769154,-500.0,0.00018904,2]
[333992856,1722666769164,-500.0,0.00018904,2]
[333992857,1722666769174,-783.81,0.00018904,2]
[333992858,1722666769184,-500.0,0.00018904,2]
[333992859,1722666769193,-1999.59,0.00018904,2]
[333992860,1722666769203,-500.0,0.00018904,2]
[333992861,1722666769213,-669.89,0.00018904,2]
[333992862,1722666769223,-500.0,0.00018904,2]
[333992863,1722666769232,-500.0,0.00018904,2]
[333992864,1722666769243,-791.15,0.00018904,2]
[333992865,1722666769253,-1652.52,0.00018904,2]
[333992866,1722666769263,-936.75,0.00018904,2]
[333992867,1722666769274,-1126.33,0.00018904,2]
[333992868,1722666769284,-500.0,0.00018904,2]
[333992869,1722666769294,-500.0,0.00018904,2]
[333992870,1722666769304,-1115.3,0.00018904,2]
[333992871,1722666769314,-1818.33,0.00018904,2]
[333992872,1722666769324,-621.62,0.00018904,2]
[333992873,1722666769333,-500.0,0.00018904,2]
[333992874,1722666769344,-814.86,0.00018904,2]
[333992875,1722666769353,-500.0,0.00018904,2]
[333992876,1722666769363,-764.75,0.00018904,2]
[333992877,1722666769373,-240.10695094,0.00018904,2]
[333992878,1722666769383,-721.8,0.00018904,2]
[333992879,1722666769394,-481.94818287,0.00018904,2]
[333992880,1722666769403,-500.0,0.00018904,2]
[333992881,1722666769414,-1488.46,0.00018904,2]
[333992882,1722666769424,-500.0,0.00018904,2]
[333992883,1722666769433,-500.0,0.00018904,2]
[333992884,1722666769444,-1556.25,0.00018904,2]
[333992885,1722666769454,-500.0,0.00018904,2]
[333992886,1722666769464,-500.0,0.00018904,2]
[333992887,1722666769474,-930.37,0.00018904,2]
[333992888,1722666769484,-1099.96,0.00018904,2]
[333992889,1722666769494,-541.23,0.00018904,2]
[333992890,1722666769504,-862.02,0.00018904,2]
[333992891,1722666769514,-782.39,0.00018904,2]
[333992892,1722666769524,-665.68,0.00018904,2]
[333992893,1722666769534,-500.0,0.00018904,2]
[333992894,1722666769543,-500.0,0.00018904,2]
[333992895,1722666769553,-500.0,0.00018904,2]
[333992896,1722666769563,-660.12,0.00018904,2]
[333992897,1722666769572,-708.64,0.00018904,2]
[333992898,1722666769582,-500.0,0.00018904,2]
[333992899,1722666769592,-709.52,0.00018904,2]
[333992900,1722666769601,-500.0,0.00018904,2]
[333992901,1722666769610,-510.64,0.00018904,2]
[333992902,1722666769620,-500.0,0.00018904,2]
[333992903,1722666769629,-681.92,0.00018904,2]
[333992904,1722666769639,-500.0,0.00018904,2]
[333992905,1722666769649,-500.0,0.00018904,2]
[333992906,1722666769659,-1423.39,0.00018904,2]
[333992907,1722666769671,-500.0,0.00018904,2]
[333992908,1722666769680,-500.0,0.00018904,2]
[333992909,1722666769690,-3672.91,0.00018904,2]
[333992910,1722666769700,-796.7,0.00018904,2]
[333992911,1722666769710,-500.0,0.00018904,2]
[333992912,1722666769720,-714.52,0.00018904,2]
[333992913,1722666769730,-2042.73,0.00018904,2]
[333992914,1722666769741,-500.0,0.00018904,2]
[333992915,1722666769752,-552.5,0.00018904,2]
[333992916,1722666769761,-1054.46,0.00018904,2]
[333992917,1722666769771,-342.24242858,0.00018904,2]
[333992918,1722666769781,-2805.89,0.00018904,2]
[333992919,1722666769790,-675.88,0.00018904,2]
[333992920,1722666769800,-1088.81,0.00018904,2]
[333992921,1722666769810,-1433.51,0.00018904,2]
[333992922,1722666769819,-500.0,0.00018904,2]
[333992923,1722666769829,-4007.83,0.00018904,2]
[333992924,1722666769839,-762.84,0.00018904,2]
[333992925,1722666769848,-3217.66,0.00018904,2]
[333992926,1722666769857,-500.0,0.00018904,2]
[333992927,1722666769866,-500.0,0.00018904,2]
[333992928,1722666769876,-2200.75,0.00018904,2]
[333992929,1722666769886,-951.76,0.00018904,2]
[333992930,1722666769895,-1702.58,0.00018904,2]
[333992931,1722666769904,-2092.77,0.00018904,2]
[333992932,1722666769914,-652.04,0.00018904,2]
[333992933,1722666769923,-500.0,0.00018904,2]
[333992934,1722666769933,-5244.42,0.00018904,2]
[333992935,1722666769943,-500.0,0.00018904,2]
[333992936,1722666769952,-693.09,0.00018904,2]
[333992937,1722666769962,-761.36,0.00018904,2]
[333992938,1722666769971,-2061.72,0.00018904,2]
[333992939,1722666769980,-2038.36,0.00018904,2]
[333992940,1722666769990,-4346.28,0.00018904,2]
[333992941,1722666770000,-1475.27,0.00018904,2]
[333992942,1722666770010,-710.45,0.00018904,2]
[333992943,1722666770020,-744.05,0.00018904,2]
[333992944,1722666770029,-1223.68,0.00018904,2]
[333992945,1722666770039,-1359.7,0.00018904,2]
[333992946,1722666770049,-500.0,0.00018904,2]
[333992947,1722666770059,-4500.27,0.00018904,2]
[333992948,1722666770068,-1729.93,0.00018904,2]
[333992949,1722666770079,-11630.47,0.00018904,2]
[333992950,1722666770088,-842.12,0.00018904,2]
[333992951,1722666770097,-1992.28,0.00018904,2]
[333992952,1722666770107,-7815.4,0.00018904,2]
[333992953,1722666770116,-500.0,0.00018904,2]
[333992954,1722666770125,-872.75,0.00018904,2]
[333992955,1722666770134,-1230.65,0.00018904,2]
[333992956,1722666770143,-1652.65,0.00018904,2]
[333992957,1722666770152,-1417.26,0.00018904,2]
[333992958,1722666770161,-199.92428736,0.00018904,2]
[333992959,1722666770171,-24317.71,0.00018904,2]
[333992960,1722666770180,-500.0,0.00018904,2]
[333992961,1722666770190,-1381.62,0.00018904,2]
[333992962,1722666770199,-8359.0,0.00018904,2]
[333992963,1722666770209,-500.0,0.00018904,2]
[333992964,1722666770219,-2959.52,0.00018904,2]
[333992965,1722666770228,-1125.68,0.00018904,2]
[333992966,1722666770238,-2625.72,0.00018904,2]
[333992967,1722666770248,-541.08,0.00018904,2]
[333992968,1722666770257,-500.0,0.00018904,2]
[333992969,1722666770267,-1606.59,0.00018904,2]
[333992970,1722666770276,-4129.44,0.00018904,2]
[333992971,1722666770286,-765.03,0.00018904,2]
[333992972,1722666770296,-500.0,0.00018904,2]
[333992973,1722666770306,-1071.89,0.00018904,2]
[333992974,1722666770315,-8009.82,0.00018904,2]
[333992975,1722666770325,-500.0,0.00018904,2]
[333992976,1722666770335,-500.0,0.00018904,2]
[333992977,1722666770344,-4309.68,0.00018904,2]
[333992978,1722666770353,-677.22,0.00018904,2]
[333992979,1722666770363,-500.0,0.00018904,2]
[333992980,1722666770372,-500.0,0.00018904,2]
[333992981,1722666770382,-3498.32,0.00018904,2]
[333992982,1722666770392,-1008.21,0.00018904,2]
[333992983,1722666770401,-500.0,0.00018904,2]
[333992984,1722666770411,-678.45,0.00018904,2]
[333992985,1722666770420,-2091.29,0.00018904,2]
[333992986,1722666770430,-3261.4,0.00018904,2]
[333992987,1722666770439,-2329.21,0.00018904,2]
[333992988,1722666770449,-1982.62,0.00018904,2]
[333992989,1722666770459,-6585.94,0.00018904,2]
[333992990,1722666770468,-532.0,0.00018904,2]
[333992991,1722666770478,-2347.25,0.00018904,2]
[333992992,1722666770487,-595.79,0.00018904,2]
[333992993,1722666770497,-1438.93,0.00018904,2]
[333992994,1722666770506,-500.0,0.00018904,2]
[333992995,1722666770515,-1558.03,0.00018904,2]
[333992996,1722666770524,-12013.62,0.00018904,2]
[333992997,1722666770533,-3194.48,0.00018904,2]
[333992998,1722666770542,-3237.49,0.00018904,2]
[333992999,1722666770551,-2240.39,0.00018904,2]
[333993000,1722666770560,-1245.88,0.00018904,2]
[333993001,1722666770571,-869.05,0.00018904,2]
[333993002,1722666770581,-500.0,0.00018904,2]
[333993003,1722666770590,-3558.7,0.00018904,2]
[333993004,1722666770600,-1516.63,0.00018904,2]
[333993005,1722666770609,-2444.23,0.00018904,2]
[333993006,1722666770618,-4848.71,0.00018904,2]
[333993007,1722666770628,-1275.84,0.00018904,2]
[333993008,1722666770637,-2528.58,0.00018904,2]
[333993009,1722666770647,-7111.63,0.00018904,2]
[333993010,1722666770658,-1234.51,0.00018904,2]
[333993011,1722666770671,-1577.42,0.00018904,2]
[333993012,1722666770682,-500.0,0.00018904,2]
[333993013,1722666770691,-3976.74,0.00018904,2]
[333993014,1722666770702,-914.84,0.00018904,2]
[333993015,1722666770714,-1179.29,0.00018904,2]
[333993016,1722666770725,-522.63,0.00018904,2]
[333993017,1722666770737,-2341.98,0.00018904,2]
[333993018,1722666770748,-2827.3,0.00018904,2]
[333993019,1722666770759,-1379.48,0.00018904,2]
[333993020,1722666770770,-13569.7,0.00018904,2]
[333993021,1722666770780,-1254.92,0.00018904,2]
[333993022,1722666770789,-867.22,0.00018904,2]
[333993023,1722666770798,-989.03,0.00018904,2]
[333993024,1722666770808,-1520.15,0.00018904,2]
[333993025,1722666770817,-4544.83,0.00018904,2]
[333993026,1722666770827,-1100.73,0.00018904,2]
[333993027,1722666770837,-797.96,0.00018904,2]
[333993028,1722666770846,-500.0,0.00018904,2]
[333993029,1722666770856,-799.61,0.00018904,2]
[333993030,1722666770865,-560.31244895,0.00018904,2]
[333993031,1722666770875,-5638.64,0.00018904,2]
[333993032,1722666770885,-1242.0,0.00018904,2]
[333993033,1722666770896,-500.0,0.00018904,2]
[333993034,1722666770908,-500.0,0.00018904,2]
[333993035,1722666770919,-500.0,0.00018904,2]
[333993036,1722666770928,-941.33,0.00018904,2]
[333993037,1722666770938,-1488.46,0.00018904,2]
[333993038,1722666770947,-560.97,0.00018904,2]
[333993039,1722666770958,-920.3,0.00018904,2]
[333993040,1722666770969,-3017.99,0.00018904,2]
[333993041,1722666770979,-500.0,0.00018904,2]
[333993042,1722666770990,-1976.61,0.00018904,2]
[333993043,1722666771000,-980.35,0.00018904,2]
[333993044,1722666771009,-2347.93,0.00018904,2]
[333993045,1722666771020,-500.0,0.00018904,2]
[333993046,1722666771032,-3028.02,0.00018904,2]
[333993047,1722666771041,-1182.86,0.00018904,2]
[333993048,1722666771051,-1315.97,0.00018904,2]
[333993049,1722666771060,-663.52,0.00018904,2]
[333993050,1722666771070,-1429.57,0.00018904,2]
[333993051,1722666771079,-1009.6,0.00018904,2]
[333993052,1722666771089,-500.0,0.00018904,2]
[333993053,1722666771098,-197.73022408,0.00018904,2]
[333993054,1722666771107,-535.59,0.00018904,2]
[333993055,1722666771117,-1659.64,0.00018904,2]
[333993056,1722666771127,-2820.52,0.00018904,2]
[333993057,1722666771138,-2112.36,0.00018904,2]
[333993058,1722666771148,-4031.55,0.00018904,2]
[333993059,1722666771158,-2096.17,0.00018904,2]
[333993060,1722666771168,-1049.02,0.00018904,2]
[333993061,1722666771177,-10150.27,0.00018904,2]
[333993062,1722666771187,-1206.49,0.00018904,2]
[333993063,1722666771196,-1122.59,0.00018904,2]
[333993064,1722666771205,-576.06,0.00018904,2]
[333993065,1722666771214,-1726.0,0.00018904,2]
[333993066,1722666771223,-793.05,0.00018904,2]
[333993067,1722666771232,-3672.81,0.00018904,2]
[333993068,1722666771242,-3286.16,0.00018904,2]
[333993069,1722666771253,-3453.65,0.00018904,2]
[333993070,1722666771263,-500.0,0.00018904,2]
[333993071,1722666771272,-1612.0,0.00018904,2]
[333993072,1722666771283,-15160.97,0.00018904,2]
[333993073,1722666771292,-1516.13,0.00018904,2]
[333993074,1722666771302,-1029.84,0.00018904,2]
[333993075,1722666771311,-1177.76,0.00018904,2]
[333993076,1722666771321,-681.33,0.00018904,2]
[333993077,1722666771330,-7716.14,0.00018904,2]
[333993078,1722666771339,-500.0,0.00018904,2]
[333993079,1722666771348,-2110.03,0.00018904,2]
[333993080,1722666771358,-1577.4,0.00018904,2]
[333993081,1722666771367,-5511.15,0.00018904,2]
[333993082,1722666771377,-500.0,0.00018904,2]
[333993083,1722666771387,-1050.57,0.00018904,2]
[333993084,1722666771396,-797.55,0.00018904,2]
[333993085,1722666771406,-2534.68,0.00018904,2]
[333993086,1722666771415,-500.0,0.00018904,2]
[333993087,1722666771425,-2306.35,0.00018904,2]
[333993088,1722666771435,-3191.49,0.00018904,2]
[333993089,1722666771445,-681.76,0.00018904,2]
[333993090,1722666771455,-500.0,0.00018904,2]
[333993091,1722666771464,-517.29,0.00018904,2]
[333993092,1722666771474,-2590.66,0.00018904,2]
[333993093,1722666771483,-500.0,0.00018904,2]
[333993094,1722666771493,-2269.33,0.00018904,2]
[333993095,1722666771503,-500.0,0.00018904,2]
[333993096,1722666771513,-571.15,0.00018904,2]
[333993097,1722666771522,-4486.63,0.00018904,2]
[333993098,1722666771531,-1395.7,0.00018904,2]
[333993099,1722666771541,-2172.92,0.00018904,2]
[333993100,1722666771550,-927.9,0.00018904,2]
[333993101,1722666771559,-642.08,0.00018904,2]
[333993102,1722666771569,-500.0,0.00018904,2]
[333993103,1722666771578,-1875.47,0.00018904,2]
[333993104,1722666771588,-551.94,0.00018904,2]
[333993105,1722666771597,-1703.59,0.00018904,2]
[333993106,1722666771606,-1746.66,0.00018904,2]
[333993107,1722666771615,-500.0,0.00018904,2]
[333993108,1722666771624,-784.82,0.00018904,2]
[333993109,1722666771634,-591.2,0.00018904,2]
[333993110,1722666771644,-3768.21,0.00018904,2]
[333993111,1722666771654,-849.08,0.00018904,2]
[333993112,1722666771667,-400.0,0.00018904,2]
[333993113,1722666771677,-876.21,0.00018904,2]
[333993114,1722666771816,-1805.68,0.00018904,2]
[333993115,1722666771827,-3769.02,0.00018904,2]
[333993116,1722666771837,-2265.81,0.00018904,2]
[333993117,1722666771847,-824.9,0.00018904,2]
[333993118,1722666771857,-1540.49,0.00018904,2]
[333993119,1722666771866,-614.94,0.00018904,2]
[333993120,1722666771876,-3761.09,0.00018904,2]
[333993121,1722666771885,-5639.15,0.00018904,2]
[333993122,1722666771895,-3464.14,0.00018904,2]
[333993123,1722666771905,-2239.27,0.00018904,2]
[333993124,1722666771914,-617.86,0.00018904,2]
[333993125,1722666771924,-650.38,0.00018904,2]
[333993126,1722666771933,-991.2,0.00018904,2]
[333993127,1722666771942,-3794.93,0.00018904,2]
[333993128,1722666771952,-500.0,0.00018904,2]
[333993129,1722666771962,-6154.67,0.00018904,2]
[333993130,1722666771971,-610.3,0.00018904,2]
[333993131,1722666771980,-1846.35,0.00018904,2]
[333993132,1722666771990,-2062.14,0.00018904,2]
[333993133,1722666772000,-7006.55,0.00018904,2]
[333993134,1722666772010,-500.0,0.00018904,2]
[333993135,1722666772019,-500.0,0.00018904,2]
[333993136,1722666772030,-654.74,0.00018904,2]
[333993137,1722666772039,-2260.06,0.00018904,2]
[333993138,1722666772049,-1671.01,0.00018904,2]
[333993139,1722666772059,-810.7,0.00018904,2]
[333993140,1722666772069,-2426.51,0.00018904,2]
[333993141,1722666772079,-500.0,0.00018904,2]
[333993142,1722666772088,-9425.49,0.00018904,2]
[333993143,1722666772098,-1017.09,0.00018904,2]
[333993144,1722666772108,-706.97,0.00018904,2]
[333993145,1722666772117,-500.0,0.00018904,2]
[333993146,1722666772126,-9197.15,0.00018904,2]
[333993147,1722666772136,-1431.9,0.00018904,2]
[333993148,1722666772146,-18960.81,0.00018904,2]
[333993149,1722666772156,-500.0,0.00018904,2]
[333993150,1722666772165,-192.67192634,0.00018904,2]
[333993151,1722666772175,-803.92,0.00018904,2]
[333993152,1722666772185,-666.06,0.00018904,2]
[333993153,1722666772196,-2204.57,0.00018904,2]
[333993154,1722666772206,-1958.7,0.00018904,2]
[333993155,1722666772216,-2126.17,0.00018904,2]
[333993156,1722666772225,-684.75,0.00018904,2]
[333993157,1722666772235,-2113.7,0.00018904,2]
[333993158,1722666772245,-876.59,0.00018904,2]
[333993159,1722666772263,-580.14,0.00018904,2]
[333993160,1722666772273,-3958.71,0.00018904,2]
[333993161,1722666772283,-1366.09,0.00018904,2]
[333993162,1722666772293,-1636.82,0.00018904,2]
[333993163,1722666772302,-3068.73,0.00018904,2]
[333993164,1722666772312,-1915.63,0.00018904,2]
[333993165,1722666772322,-2609.6,0.00018904,2]
[333993166,1722666772331,-1156.97,0.00018904,2]
[333993167,1722666772341,-1837.83,0.00018904,2]
[333993168,1722666772351,-735.07,0.00018904,2]
[333993169,1722666772360,-583.63,0.00018904,2]
[333993170,1722666772370,-664.37,0.00018904,2]
[333993171,1722666772379,-2322.65,0.00018904,2]
[333993172,1722666772388,-651.05,0.00018904,2]
[333993173,1722666772398,-500.0,0.00018904,2]
[333993174,1722666772409,-1304.49,0.00018904,2]
[333993175,1722666772418,-500.0,0.00018904,2]
[333993176,1722666772428,-200.0,0.00018973,2]
[333993177,1722666772439,-162.895,0.00018999,2]
[333993178,1722666772448,-228.24920581,0.00018999,2]
[333993179,1722666772458,-155.0,0.00019,2]
[333993180,1722666772467,-502.0,0.00019,15]
[333993181,1722666772479,-12022.0,0.00019,5]
[333993182,1722666772489,-770.45,0.00019,2]
[333993183,1722666772499,-200.34360507,0.00019,2]
[333993184,1722666772509,-829.34091474,0.00019,2]
[333993185,1722666772518,-216.0,0.00019,2]
[333993186,1722666772528,-214.0,0.00019,2]
[333993187,1722666772539,-155.16935918,0.00019,2]
[333993188,1722666772551,-4148.33023521,0.00019,2]
[333993189,1722666772561,-625.601066,0.00019,2]
[333993190,1722666772571,-213.97,0.00019034,2]
[333993191,1722666772580,-2000.0,0.000191,2]
[333993192,1722666772590,-506.0,0.000191,2]
[333993193,1722666772599,-1011.4,0.000191,2]
[333993194,1722666772609,-313.2,0.000191,2]
[333993195,1722666772619,-2402.24,0.00019178,2]
[333993196,1722666772628,-500.0,0.00019178,2]
[333993197,1722666772638,-500.13171681,0.00019178,2]
[333993198,1722666772647,-500.0,0.00019178,2]
[333993199,1722666772656,-500.0,0.00019178,2]
[333993200,1722666772670,-989.73,0.00019178,2]
[333993201,1722666772679,-788.91,0.00019178,2]
[333993202,1722666772689,-500.0,0.00019178,2]
[333993203,1722666772698,-500.0,0.00019178,2]
[333993204,1722666772708,-500.0,0.00019178,2]
[333993205,1722666772717,-500.0,0.00019178,2]
[333993206,1722666772727,-500.0,0.00019178,2]
[333993207,1722666772739,-567.17,0.00019178,2]
[333993208,1722666772751,-500.0,0.00019178,2]
[333993209,1722666772760,-500.0,0.00019178,2]
[333993210,1722666772769,-500.0,0.00019178,2]
[333993211,1722666772779,-1103.75,0.00019178,2]
[333993212,1722666772788,-500.0,0.00019178,2]
[333993213,1722666772797,-1066.77,0.00019178,2]
[333993214,1722666772807,-593.51,0.00019178,2]
[333993215,1722666772816,-766.07,0.00019178,2]
[333993216,1722666772825,-758.83,0.00019178,2]
[333993217,1722666772835,-1147.83,0.00019178,2]
[333993218,1722666772845,-569.94,0.00019178,2]
[333993219,1722666772854,-500.0,0.00019178,2]
[333993220,1722666772863,-500.0,0.00019178,2]
[333993221,1722666772873,-500.0,0.00019178,2]
[333993222,1722666772883,-196.36163962,0.00019178,2]
[333993223,1722666772892,-500.0,0.00019178,2]
[333993224,1722666772902,-500.0,0.00019178,2]
[333993225,1722666772911,-500.0,0.00019178,2]
[333993226,1722666772921,-800.64,0.00019178,2]
[333993227,1722666772931,-715.96,0.00019178,2]
[333993228,1722666772941,-500.0,0.00019178,2]
[333993229,1722666772951,-500.0,0.00019178,2]
[333993230,1722666772962,-500.0,0.00019178,2]
[333993231,1722666772971,-517.53,0.00019178,2]
[333993232,1722666772980,-500.0,0.00019178,2]
[333993233,1722666772989,-702.72,0.00019178,2]
[333993234,1722666773000,-334.74980731,0.00019178,2]
[333993235,1722666773009,-937.04,0.00019178,2]
[333993236,1722666773019,-500.0,0.00019178,2]
[333993237,1722666773028,-500.0,0.00019178,2]
[333993238,1722666773037,-500.0,0.00019178,2]
[333993239,1722666773047,-500.0,0.00019178,2]
[333993240,1722666773057,-500.0,0.00019178,2]
[333993241,1722666773066,-887.0,0.00019178,2]
[333993242,1722666773076,-500.0,0.00019178,2]
[333993243,1722666773085,-810.08,0.00019178,2]
[333993244,1722666773094,-500.0,0.00019178,2]